bitfinex/quotes_SOLUSD_20260102
["timestamp","ask_amount","ask_price","bid_price","bid_amount"]
[1767317078671,2.07846063,126.47,126.44,0.66388409]
[1767317078871,2.07846063,126.46,126.44,0.66388409]
[1767317079989,2.07846063,126.47,126.44,0.66388409]
[1767317080491,27.66798417,126.5,126.43,14.44]
[1767317080492,2.07846063,126.46,126.43,14.44]
[1767317080684,2.07846063,126.45,126.42,0.86388409]
[1767317085897,7.90730483,126.47,126.42,0.2]
[1767317085898,2.07846063,126.43,126.42,0.2]
[1767317086193,2.07846063,126.43,126.41,0.2]
[1767317086375,2.07846063,126.42,126.41,0.2]
[1767317087195,14.44,126.46,126.41,0.2]
[1767317087492,2.07846063,126.43,126.41,0.2]
[1767317088579,2.07846063,126.43,126.41,0.86388409]
[1767317089297,7.96159419,126.42,126.4,14.77481764]
[1767317089485,2.07846063,126.41,126.4,14.77481764]
[1767317092899,2.07846063,126.41,126.4,15.43870173]
[1767317094505,7.90940026,126.44,126.4,15.43870173]
[1767317094702,2.07846063,126.42,126.4,15.43870173]
[1767317095905,2.07846063,126.42,126.4,14.77481764]
[1767317096597,3.25061024,126.42,126.4,14.77481764]
[1767317097006,3.25061024,126.41,126.4,14.77481764]
[1767317099610,3.25061024,126.43,126.41,0.6637485]
[1767317100796,3.25061024,126.44,126.41,0.6637485]
[1767317101517,3.25061024,126.45,126.42,0.6637485]
[1767317101692,3.25061024,126.46,126.42,0.6637485]
[1767317103592,3.25061024,126.46,126.42,8.57384668]
[1767317103806,3.25061024,126.46,126.43,0.6637485]
[1767317104411,22.36601999,126.49,126.43,0.6637485]
[1767317104597,3.25061024,126.47,126.43,7.90940085]
[1767317104810,3.25061024,126.47,126.44,0.6637485]
[1767317107504,3.25061024,126.45,126.41,0.6637485]
[1767317107712,3.25061024,126.44,126.41,0.6637485]
[1767317107917,3.25061024,126.43,126.41,0.6637485]
[1767317109196,3.25061024,126.42,126.4,14.77481764]
[1767317109888,3.25061024,126.42,126.4,15.43856614]
[1767317110614,14.46,126.47,126.4,14.77481764]
[1767317110615,3.25061024,126.41,126.4,14.77481764]
[1767317111705,3.25061024,126.41,126.38,0.8637485]
[1767317112700,3.25061024,126.41,126.39,0.6637485]
[1767317121125,3.25061024,126.42,126.39,0.6637485]
[1767317123724,3.25061024,126.4,126.38,0.91906236]
[1767317126025,3.25061024,126.4,126.38,0.2]
[1767317126218,3.25061024,126.39,126.38,0.2]
[1767317128226,14.44650254,126.39,126.35,0.71906236]
[1767317128433,3.25061024,126.38,126.35,0.71906236]
[1767317128635,3.25061024,126.38,126.34,0.71906236]
[1767317128834,3.25061024,126.37,126.34,0.71906236]
[1767317129130,3.25061024,126.36,126.33,0.71906236]
[1767317129507,3.25061024,126.37,126.34,0.71906236]
[1767317130627,3.25061024,126.36,126.34,0.71906236]
[1767317131430,7.91225428,126.39,126.34,0.71906236]
[1767317131633,3.25061024,126.36,126.34,0.71906236]
[1767317132108,3.25061024,126.36,126.32,8.63489493]
[1767317132729,3.25061024,126.36,126.33,0.71906236]
[1767317133716,9.87730575,126.42,126.32,7.91583257]
[1767317133717,3.25061024,126.35,126.32,0.71906236]
[1767317134314,3.25061024,126.37,126.33,0.71906236]
[1767317135639,3.25061024,126.36,126.33,0.71906236]
[1767317136829,3.25061024,126.35,126.32,7.91597996]
[1767317137032,3.25061024,126.34,126.31,14.46]
[1767317137233,3.25061024,126.34,126.31,15.17906236]
[1767317137530,3.25061024,126.34,126.31,0.71906236]
[1767317138732,19.78161101,126.38,126.31,0.71906236]
[1767317138733,7.91353085,126.37,126.31,0.71906236]
[1767317138939,3.25061024,126.34,126.31,0.71906236]
[1767317139525,7.91353085,126.37,126.31,0.71906236]
[1767317139735,3.25061024,126.34,126.31,0.71906236]
[1767317141240,3.25061024,126.35,126.31,8.63598867]
[1767317141441,3.25061024,126.35,126.32,0.71906236]
[1767317143225,3.25061024,126.36,126.33,0.71906236]
[1767317144440,3.25061024,126.36,126.33,7.9155432]
[1767317144622,3.25061024,126.36,126.34,0.71906236]
[1767317146439,7.91206454,126.39,126.34,0.71906236]
[1767317146440,3.25061024,126.37,126.34,0.71906236]
[1767317146637,3.25061024,126.38,126.35,0.71906236]
[1767317148349,3.25061024,126.36,126.34,0.71906236]
[1767317156555,2.08253859,126.35,126.34,0.71906236]
[1767317157058,2.08253859,126.36,126.34,0.71906236]
[1767317159352,2.08253859,126.37,126.34,0.71906236]
[1767317160466,2.08253859,126.37,126.34,7.91513708]
[1767317160667,2.08253859,126.38,126.35,0.6613875]
[1767317160853,2.08253859,126.39,126.35,0.6613875]
[1767317161440,2.08253859,126.39,126.36,0.6613875]
[1767317163662,7.91017775,126.42,126.37,0.6613875]
[1767317163850,2.08253859,126.43,126.39,0.6613875]
[1767317164939,2.08253859,126.43,126.4,0.6613875]
[1767317165340,7.90826413,126.45,126.4,0.6613875]
[1767317165540,2.08253859,126.43,126.4,0.6613875]
[1767317166459,2.08253859,126.42,126.4,0.6613875]
[1767317166855,2.08253859,126.41,126.38,0.6613875]
[1767317168752,2.08253859,126.42,126.38,0.6613875]
[1767317170871,2.08253859,126.42,126.38,8.57402637]
[1767317171071,2.08253859,126.42,126.39,0.6613875]
[1767317179580,2.08253859,126.45,126.41,0.6613875]
[1767317179954,2.08253859,126.46,126.41,2.74392609]
[1767317180267,2.08253859,126.46,126.43,0.6613875]
[1767317183174,24.44902188,126.48,126.44,0.6613875]
[1767317183480,2.08253859,126.47,126.44,0.63196244]
[1767317185380,2.08253859,126.45,126.42,0.65817623]
[1767317185580,2.08253859,126.46,126.42,0.65817623]
[1767317186885,2.11196365,126.46,126.42,0.65817623]
[1767317187282,0.02942506,126.46,126.42,0.65817623]
[1767317187479,2.11196365,126.46,126.42,0.65817623]
[1767317188386,0.02942506,126.46,126.42,0.65817623]
[1767317188682,2.11196365,126.46,126.42,0.65817623]
[1767317191272,2.08253859,126.45,126.42,0.65817623]
[1767317193794,2.11196365,126.46,126.42,0.65817623]
[1767317196495,2.08253859,126.46,126.43,0.65817623]
[1767317197589,2.11196365,126.47,126.43,0.65817623]
[1767317200183,0.02942506,126.47,126.43,0.65817623]
[1767317200382,2.11196365,126.47,126.43,0.65817623]
[1767317201595,2.11196365,126.47,126.42,9.99253563]
[1767317201899,2.11196365,126.47,126.42,9.99263206]
[1767317203784,2.11196365,126.47,126.43,0.65817623]
[1767317210910,0.02942506,126.47,126.43,0.65817623]
[1767317211114,2.11196365,126.47,126.43,0.65817623]
[1767317211407,2.11196365,126.47,126.42,9.99263206]
[1767317212605,2.11196365,126.47,126.43,2.08253859]
[1767317212906,2.08253859,126.47,126.43,2.08253859]
[1767317213081,0.71353475,126.46,126.43,2.08253859]
[1767317213285,0.71353475,126.46,126.43,0.65817623]
[1767317224219,5.32830128,126.45,126.43,0.65817623]
[1767317226115,9.27872909,126.45,126.41,0.71977274]
[1767317226316,7.9077798,126.46,126.38,19.78126743]
[1767317226317,0.70235807,126.41,126.38,0.71977274]
[1767317226622,3.95042781,126.41,126.38,0.71977274]
[1767317226800,0.70235807,126.41,126.38,0.71977274]
[1767317229701,3.95042781,126.41,126.38,0.71977274]
[1767317229908,3.92042781,126.41,126.38,0.71977274]
[1767317231818,3.24806974,126.41,126.36,25.60170512]
[1767317232022,3.95042781,126.4,126.37,0.71977274]
[1767317232325,3.95042781,126.39,126.35,0.71977274]
[1767317232502,0.70235807,126.38,126.35,0.71977274]
[1767317234802,3.95042781,126.38,126.35,0.71977274]
[1767317236024,0.70235807,126.38,126.35,0.71977274]
[1767317236199,1.33424236,126.37,126.35,0.71977274]
[1767317251239,3.95042781,126.38,126.35,0.71977274]
[1767317253114,1.33424236,126.37,126.35,0.71977274]
[1767317259924,2.02597969,126.37,126.35,0.71977274]
[1767317263349,4.5823121,126.37,126.34,0.66228482]
[1767317263641,0.69173733,126.35,126.33,0.66228482]
[1767317264049,3.24806974,126.35,126.31,15.12228482]
[1767317264225,1.33424236,126.37,126.35,0.66228482]
[1767317265245,2.02597969,126.37,126.35,0.66228482]
[1767317266748,5.27404943,126.37,126.33,0.66228482]
[1767317268158,3.93980707,126.37,126.33,0.66228482]
[1767317269556,0.69173733,126.37,126.33,0.66228482]
[1767317270143,1.33424236,126.36,126.33,0.66228482]
[1767317277963,0.6528051,126.35,126.31,0.68970726]
[1767317278165,0.6528051,126.34,126.31,0.68970726]
[1767317280367,7.91372859,126.37,126.31,2.08266125]
[1767317280558,0.6528051,126.35,126.33,0.68970726]
[1767317280758,0.6528051,126.35,126.32,2.77236851]
[1767317280949,0.6528051,126.35,126.32,0.68970726]
[1767317281149,1.33424236,126.33,126.32,0.68970726]
[1767317281364,1.33424236,126.33,126.32,2.77236851]
[1767317282659,1.29466348,126.33,126.32,2.77236851]
[1767317286176,1.29466348,126.33,126.32,0.68970726]
[1767317286468,1.29466348,126.33,126.32,2.77236851]
[1767317288362,1.29466348,126.33,126.32,0.68970726]
[1767317290958,1.29466348,126.33,126.31,24.45964038]
[1767317291574,0.6528051,126.36,126.32,2.08266125]
[1767317291982,0.6528051,126.36,126.33,2.08266125]
[1767317292782,0.6528051,126.36,126.33,9.99832822]
[1767317292955,0.6528051,126.36,126.33,10.16784344]
[1767317295955,0.6528051,126.36,126.33,9.99832822]
[1767317296159,0.6528051,126.37,126.34,0.16951522]
[1767317296377,0.6528051,126.37,126.33,10.16784344]
[1767317297184,0.6528051,126.37,126.33,8.08518219]
[1767317297359,0.6528051,126.37,126.33,10.16784344]
[1767317298761,0.6528051,126.37,126.34,2.08266125]
[1767317299687,0.6528051,126.39,126.35,2.08266125]
[1767317299868,0.6528051,126.38,126.35,2.08266125]
[1767317300062,0.6528051,126.38,126.35,2.25217647]
[1767317301588,0.6528051,126.38,126.35,10.16659704]
[1767317302085,0.6528051,126.38,126.35,9.99708182]
[1767317303689,0.6528051,126.38,126.35,7.91442057]
[1767317309485,0.6528051,126.38,126.35,8.08393579]
[1767317313113,0.6528051,126.38,126.35,0.16951522]
[1767317313579,2.08266125,126.37,126.33,16.71217647]
[1767317313778,0.66351208,126.36,126.33,14.46]
[1767317314201,0.66351208,126.36,126.33,14.62951522]
[1767317315295,0.66351208,126.36,126.33,22.54527549]
[1767317315599,0.66351208,126.36,126.33,24.62793674]
[1767317325904,2.08266125,126.38,126.33,24.45842152]
[1767317326088,0.66351208,126.37,126.34,0.16951522]
[1767317326702,0.66351208,126.37,126.33,24.45842152]
[1767317326906,0.66351208,126.37,126.33,24.62793674]
[1767317328388,0.66351208,126.37,126.34,2.08266125]
[1767317330096,0.6576458,126.38,126.35,0.16951522]
[1767317330298,0.6576458,126.38,126.35,2.25217647]
[1767317330498,0.6576458,126.38,126.35,0.16951522]
[1767317330698,0.6576458,126.38,126.34,24.45778721]
[1767317331000,0.6576458,126.38,126.34,24.62730243]
[1767317338427,2.08266125,126.38,126.34,14.62951522]
[1767317338718,0.68800865,126.37,126.34,22.54456768]
[1767317339625,0.68800865,126.37,126.34,22.37505246]
[1767317340419,0.68800865,126.37,126.34,22.54456768]
[1767317341223,0.68800865,126.37,126.34,22.37505246]
[1767317342723,0.68800865,126.36,126.33,7.91558285]
[1767317343312,0.68800865,126.36,126.33,8.08509807]
[1767317345811,0.68800865,126.36,126.33,11.33777987]
[1767317355527,0.68800865,126.36,126.33,3.2526818]
[1767317355924,3.2526818,126.34,126.3,7.9174685]
[1767317356124,0.68800865,126.33,126.29,0.36951522]
[1767317356426,3.2526818,126.34,126.31,3.42219702]
[1767317356427,0.68800865,126.34,126.31,3.42219702]
[1767317356824,0.68800865,126.34,126.3,14.62951522]
[1767317357028,0.68800865,126.34,126.31,3.2526818]
[1767317357411,0.68800865,126.34,126.3,25.79983893]
[1767317359232,3.94069045,126.35,126.32,0.16951522]
[1767317359411,5.32398684,126.34,126.3,25.63032371]
[1767317359607,6.01199549,126.34,126.31,0.16951522]
[1767317359804,0.68800865,126.34,126.31,0.16951522]
[1767317360428,0.68800865,126.34,126.31,8.08640454]
[1767317361929,0.68800865,126.34,126.31,11.33908634]
[1767317362134,0.68800865,126.35,126.32,0.16951522]
[1767317362505,0.68800865,126.35,126.31,11.33908634]
[1767317365432,3.2526818,126.35,126.31,11.33908634]
[1767317365636,0.71588853,126.34,126.31,11.33908634]
[1767317368237,0.71588853,126.34,126.31,8.08640454]
[1767317368815,0.71588853,126.33,126.31,7.91688932]
[1767317375241,0.71588853,126.33,126.31,8.08640454]
[1767317377144,0.71588853,126.33,126.3,22.54705554]
[1767317377328,0.71588853,126.33,126.3,25.79973734]
[1767317386453,0.71588853,126.33,126.3,22.54705554]
[1767317386750,0.71588853,126.33,126.3,25.79973734]
[1767317390849,0.71588853,126.33,126.31,3.2526818]
[1767317391048,0.71588853,126.33,126.31,11.16934972]
[1767317392168,3.2526818,126.36,126.31,11.16934972]
[1767317392337,0.71588853,126.35,126.31,11.33886494]
[1767317392858,0.71588853,126.38,126.33,3.42219702]
[1767317393062,11.95015508,126.37,126.34,3.2526818]
[1767317393257,0.71588853,126.37,126.34,3.2526818]
[1767317394864,0.71588853,126.37,126.33,11.33748252]
[1767317395165,0.71588853,126.37,126.31,0.68774849]
[1767317395364,0.68263111,126.35,126.31,11.8570858]
[1767317395863,0.68263111,126.35,126.31,8.604404]
[1767317398865,0.68263111,126.37,126.33,0.68774849]
[1767317399266,3.2526818,126.37,126.33,0.68774849]
[1767317399473,0.68263111,126.36,126.33,0.68774849]
[1767317400081,0.68263111,126.36,126.33,8.60318843]
[1767317402677,2.76485867,126.38,126.33,0.68774849]
[1767317402865,0.68263111,126.37,126.33,0.68774849]
[1767317404052,0.68263111,126.36,126.33,0.68774849]
[1767317405099,0.68263111,126.36,126.33,8.60324974]
[1767317405476,0.68263111,126.36,126.34,0.68774849]
[1767317406972,2.08222756,126.38,126.34,0.68774849]
[1767317407161,0.68263111,126.37,126.34,0.68774849]
[1767317411258,0.68263111,126.37,126.34,8.60283297]
[1767317411867,0.68263111,126.37,126.34,0.68774849]
[1767317428701,0.68263111,126.37,126.33,7.91552512]
[1767317428999,0.69040957,126.36,126.33,7.91552512]
[1767317429196,0.69040957,126.36,126.33,8.6063078]
[1767317439405,0.69040957,126.36,126.33,10.68853536]
[1767317439797,0.69040957,126.36,126.33,0.69078268]
[1767317442598,0.69040957,126.36,126.33,2.77301024]
[1767317446714,0.69040957,126.38,126.34,2.77301024]
[1767317446917,11.9434813,126.37,126.34,2.77301024]
[1767317447212,11.25307173,126.36,126.34,2.77301024]
[1767317447393,0.69040957,126.37,126.34,2.77301024]
[1767317447600,11.25308045,126.36,126.34,2.77301024]
[1767317447796,0.69040957,126.37,126.34,2.77301024]
[1767317447996,11.25308305,126.36,126.34,2.77301024]
[1767317448196,0.69040957,126.37,126.34,2.77301024]
[1767317448397,11.253102,126.36,126.34,2.77301024]
[1767317448608,0.69040957,126.37,126.34,2.77301024]
[1767317448810,11.24958138,126.36,126.34,0.69078268]
[1767317449109,0.69040957,126.37,126.34,0.69078268]
[1767317449110,0.69040957,126.37,126.34,2.77301024]
[1767317449311,11.24962724,126.36,126.34,2.77301024]
[1767317449612,0.69040957,126.37,126.34,2.77301024]
[1767317449804,11.24890621,126.36,126.34,2.77301024]
[1767317450009,0.69040957,126.37,126.34,2.77301024]
[1767317450214,11.2489168,126.36,126.34,2.77301024]
[1767317450406,0.69040957,126.37,126.34,2.77301024]
[1767317450715,11.24886597,126.36,126.34,2.77301024]
[1767317450910,0.69040957,126.37,126.34,2.77301024]
[1767317451112,11.24885553,126.36,126.34,2.77301024]
[1767317451415,0.69040957,126.37,126.34,2.77301024]
[1767317451613,11.24880918,126.36,126.34,2.77301024]
[1767317451817,0.69040957,126.37,126.34,2.77301024]
[1767317452009,11.24880781,126.36,126.34,2.77301024]
[1767317452324,0.69040957,126.37,126.34,2.77301024]
[1767317452512,11.24890629,126.36,126.35,0.69078268]
[1767317454909,0.66936238,126.37,126.35,0.69078268]
[1767317455306,0.66936238,126.4,126.35,2.08222756]
[1767317455511,0.66936238,126.38,126.33,0.67164285]
[1767317455717,11.9143993,126.37,126.34,2.75387041]
[1767317455916,0.66936238,126.37,126.34,2.75387041]
[1767317462534,0.66936238,126.37,126.34,3.25231304]
[1767317462716,0.66936238,126.37,126.35,0.67164285]
[1767317463040,0.66936238,126.35,126.3,8.58928896]
[1767317463238,0.66936238,126.33,126.3,8.58928896]
[1767317465206,0.66936238,126.33,126.31,0.67164285]
[1767317469713,0.6297835,126.33,126.31,0.67164285]
[1767317472541,0.6297835,126.33,126.3,7.91764611]
[1767317472916,0.6297835,126.33,126.3,8.58928896]
[1767317476457,0.66936238,126.32,126.29,8.78984272]
[1767317476655,0.66936238,126.32,126.29,8.11819987]
[1767317476821,0.66936238,126.32,126.29,8.78984272]
[1767317478744,0.66936238,126.33,126.3,0.67164285]
[1767317480634,0.66936238,126.33,126.31,0.67164285]
[1767317490351,0.66936238,126.33,126.31,3.92395589]
[1767317493253,0.66936238,126.33,126.31,0.67164285]
[1767317493647,0.66212273,126.37,126.33,0.70928388]
[1767317493857,0.66212273,126.37,126.34,3.96159692]
[1767317494355,0.66212273,126.37,126.34,0.70928388]
[1767317499362,3.91443577,126.37,126.34,0.70928388]
[1767317499664,0.66212273,126.37,126.34,0.70928388]
[1767317499847,3.91443577,126.37,126.34,0.70928388]
[1767317500655,3.91443577,126.37,126.34,8.62441393]
[1767317500861,0.66212273,126.37,126.34,8.62441393]
[1767317501164,3.91443577,126.37,126.34,8.62441393]
[1767317502065,0.66212273,126.37,126.34,8.62441393]
[1767317507768,33.37455453,126.42,126.35,3.96159692]
[1767317507949,0.66212273,126.39,126.36,3.96159692]
[1767317508461,0.66212273,126.39,126.36,0.70928388]
[1767317511663,45.8416868,126.42,126.37,0.70928388]
[1767317511664,0.66212273,126.41,126.37,0.70928388]
[1767317511870,3.91443577,126.41,126.37,0.70928388]
[1767317512070,0.66212273,126.4,126.37,0.70928388]
[1767317513870,0.66135664,126.39,126.35,25.62656276]
[1767317514167,0.66135664,126.38,126.35,25.62656276]
[1767317514357,0.66135664,126.38,126.35,26.31257813]
[1767317514752,0.66135664,126.38,126.36,0.68601537]
[1767317514953,0.66135664,126.38,126.36,8.59987525]
[1767317515184,0.66135664,126.39,126.36,11.85218829]
[1767317515469,0.66135664,126.39,126.37,0.68601537]
[1767317516866,0.66135664,126.39,126.36,8.59987525]
[1767317533587,10.65309925,126.41,126.37,0.68601537]
[1767317533784,0.66135664,126.4,126.37,0.68601537]
[1767317536092,2.08097596,126.4,126.37,0.68601537]
[1767317536295,2.7423326,126.4,126.37,0.68601537]
[1767317539096,2.08097596,126.4,126.37,0.68601537]
[1767317539392,2.7423326,126.4,126.37,0.68601537]
[1767317540574,0.66135664,126.39,126.37,0.68601537]
[1767317550404,0.66135664,126.39,125.86,106.62948782]
[1767317550405,0.70517602,126.37,126.29,0.87995004]
[1767317550588,2.78615198,126.32,126.29,0.87995004]
[1767317551101,0.70517602,126.31,126.29,0.87995004]
[1767317551478,0.70517602,126.35,126.3,0.67995004]
[1767317551680,0.70517602,126.33,126.3,0.67995004]
[1767317553121,0.70517602,126.33,126.3,7.91742031]
[1767317553289,0.70517602,126.33,126.31,0.67995004]
[1767317553484,2.78615198,126.35,126.31,0.67995004]
[1767317553684,0.70517602,126.34,126.31,0.67995004]
[1767317553986,2.08097596,126.35,126.31,0.67995004]
[1767317554206,0.70517602,126.35,126.31,0.67995004]
[1767317554501,2.78615198,126.35,126.31,0.67995004]
[1767317555101,0.70517602,126.35,126.32,0.67995004]
[1767317559711,7.91283307,126.38,126.32,0.67995004]
[1767317559914,0.70517602,126.38,126.35,0.67995004]
[1767317560091,2.78615198,126.38,126.35,0.67995004]
[1767317560290,0.70517602,126.37,126.34,0.67995004]
[1767317561617,2.78615198,126.37,126.34,0.67995004]
[1767317562510,0.70517602,126.37,126.34,0.67995004]
[1767317567319,0.70517602,126.37,126.32,7.9161744]
[1767317567492,0.70517602,126.36,126.33,0.67995004]
[1767317571495,0.70517602,126.36,126.33,2.760926]
[1767317572622,0.70517602,126.36,126.33,2.08097596]
[1767317572917,0.70517602,126.36,126.34,0.67995004]
[1767317574131,0.70517602,126.36,126.33,2.79761128]
[1767317576122,0.70517602,126.36,126.33,0.71663532]
[1767317580523,0.68962857,126.39,126.35,2.08097596]
[1767317580710,0.68962857,126.4,126.37,0.71663532]
[1767317581114,0.68962857,126.4,126.37,2.79761128]
[1767317581426,0.68962857,126.4,126.37,0.71663532]
[1767317587760,0.68962857,126.4,126.35,0.71663532]
[1767317587761,3.25085842,126.39,126.35,0.71663532]
[1767317588041,0.68962857,126.38,126.35,0.71663532]
[1767317589841,0.68962857,126.38,126.35,3.96749374]
[1767317590935,0.68962857,126.38,126.36,0.71663532]
[1767317591547,0.68962857,126.38,126.35,11.88188765]
[1767317592538,0.68962857,126.38,126.35,11.16525233]
[1767317592851,0.68962857,126.38,126.35,0.71663532]
[1767317594250,0.68962857,126.38,126.33,22.37550948]
[1767317594549,0.68962857,126.38,126.35,0.71663532]
[1767317612760,0.68962857,126.38,126.35,3.96749374]
[1767317612966,0.68962857,126.38,126.36,0.66498508]
[1767317613969,0.69631666,126.4,126.36,3.9158435]
[1767317614182,11.86970028,126.39,126.36,3.9158435]
[1767317614469,0.69631666,126.39,126.36,3.9158435]
[1767317615570,0.69631666,126.39,126.36,0.66498508]
[1767317621076,5.29505467,126.38,126.36,0.66498508]
[1767317621373,0.69631666,126.39,126.36,0.66498508]
[1767317621575,5.29543154,126.38,126.36,0.66498508]
[1767317625675,5.29543154,126.38,126.37,0.66498508]
[1767317629764,5.29543154,126.38,126.36,0.66498508]
[1767317630075,0.69631666,126.37,126.35,0.66498508]
[1767317630380,0.69631666,126.38,126.35,0.66498508]
[1767317636690,0.72050678,126.35,126.3,0.68497749]
[1767317636907,0.72050678,126.33,126.3,0.68497749]
[1767317638189,3.9713652,126.33,126.3,0.68497749]
[1767317638387,0.72050678,126.32,126.29,0.88497749]
[1767317639286,3.25085842,126.32,126.29,0.2]
[1767317639467,0.72050678,126.31,126.29,0.2]
[1767317639872,3.9713652,126.31,126.29,0.2]
[1767317640589,0.72050678,126.31,126.29,0.2]
[1767317641190,0.72050678,126.31,126.29,0.88497749]
[1767317641789,0.72050678,126.31,126.29,0.2]
[1767317641966,0.72050678,126.29,126.28,0.2]
[1767317642170,3.9713652,126.29,126.26,0.68497749]
[1767317642372,0.72050678,126.28,126.26,0.68497749]
[1767317645691,2.805126,126.29,126.26,0.68497749]
[1767317646993,0.72050678,126.29,126.26,0.68497749]
[1767317647795,2.08461922,126.28,126.25,0.68497749]
[1767317647998,2.805126,126.29,126.25,0.68497749]
[1767317648693,0.72050678,126.28,126.25,0.68497749]
[1767317648900,2.805126,126.28,126.25,0.68497749]
[1767317649285,0.72050678,126.28,126.25,0.68497749]
[1767317650198,0.72050678,126.3,126.25,2.08461922]
[1767317650381,0.72050678,126.29,126.22,7.92241172]
[1767317650575,0.72050678,126.26,126.22,10.69200843]
[1767317650778,0.72050678,126.26,126.23,0.68497749]
[1767317651201,27.70984577,126.31,126.23,10.00663608]
[1767317651501,2.805126,126.28,126.24,0.68497749]
[1767317651994,0.72050678,126.28,126.24,10.69093302]
[1767317652198,28.14003248,126.33,126.25,2.08461922]
[1767317652381,2.805126,126.3,126.26,0.68497749]
[1767317652779,2.08461922,126.27,126.24,0.68497749]
[1767317652984,0.72050678,126.27,126.24,0.68497749]
[1767317653394,0.72050678,126.29,126.25,2.76959671]
[1767317653905,0.72050678,126.29,126.26,0.68497749]
[1767317654604,0.72050678,126.3,126.27,0.68497749]
[1767317656203,2.805126,126.3,126.27,0.68497749]
[1767317656415,0.72050678,126.3,126.27,0.68497749]
[1767317656706,0.72050678,126.31,126.27,0.68497749]
[1767317656891,2.805126,126.31,126.27,0.68497749]
[1767317658108,0.72050678,126.3,126.27,0.68497749]
[1767317659490,2.805126,126.3,126.27,0.68497749]
[1767317660826,0.72050678,126.3,126.27,0.68497749]
[1767317661029,2.805126,126.3,126.27,0.68497749]
[1767317661621,0.72050678,126.3,126.27,0.68497749]
[1767317664514,104.8,126.34,126.27,7.91900696]
[1767317664698,2.08461922,126.33,126.29,0.713302]
[1767317664895,0.68893552,126.32,126.29,0.713302]
[1767317665216,2.77355474,126.33,126.29,0.713302]
[1767317665602,2.77355474,126.33,126.29,2.79792122]
[1767317665802,2.77355474,126.33,126.3,0.713302]
[1767317666814,0.68893552,126.35,126.3,8.63078915]
[1767317667007,2.77355474,126.35,126.31,0.713302]
[1767317667206,0.68893552,126.34,126.31,0.713302]
[1767317670623,2.77355474,126.34,126.31,0.713302]
[1767317671109,0.68893552,126.34,126.31,0.713302]
[1767317672017,2.08461922,126.35,126.31,7.9170131]
[1767317672322,2.77355474,126.35,126.32,0.713302]
[1767317674520,2.08461922,126.35,126.31,7.9170131]
[1767317674725,2.77355474,126.34,126.31,0.713302]
[1767317675437,0.68893552,126.34,126.31,0.713302]
[1767317677124,0.68893552,126.33,126.3,0.713302]
[1767317677612,2.77355474,126.34,126.3,0.713302]
[1767317677815,0.68893552,126.33,126.3,0.713302]
[1767317681311,2.77355474,126.33,126.3,0.713302]
[1767317681618,0.68893552,126.33,126.3,0.713302]
[1767317682208,0.68893552,126.31,126.28,25.17664607]
[1767317682913,0.68893552,126.31,126.29,0.713302]
[1767317683113,2.77355474,126.32,126.29,0.713302]
[1767317684934,0.68893552,126.31,126.28,17.25792122]
[1767317685329,0.68893552,126.3,126.26,2.79792122]
[1767317685522,2.77355474,126.3,126.26,0.713302]
[1767317685717,0.68893552,126.3,126.26,2.79792122]
[1767317686513,0.68893552,126.3,126.26,2.08461922]
[1767317686736,0.68893552,126.3,126.27,0.713302]
[1767317688628,0.68893552,126.29,126.26,0.713302]
[1767317688832,2.77355474,126.3,126.26,0.713302]
[1767317689220,0.68893552,126.29,126.26,0.713302]
[1767317699535,2.77721449,126.3,126.26,0.713302]
[1767317700444,5.87059634,126.29,126.27,0.71711492]
[1767317700624,2.77721449,126.31,126.27,0.71711492]
[1767317703242,2.08461922,126.31,126.27,0.71711492]
[1767317703448,2.77721449,126.31,126.27,0.71711492]
[1767317704350,2.08461922,126.31,126.27,0.71711492]
[1767317704551,0.69259527,126.3,126.27,0.71711492]
[1767317704750,0.69259527,126.29,126.26,15.17711492]
[1767317705452,0.69259527,126.29,126.26,0.71711492]
[1767317707448,3.94884404,126.31,126.26,3.97336369]
[1767317707654,0.69259527,126.3,126.27,0.71711492]
[1767317710865,3.25624877,126.32,126.28,0.71711492]
[1767317711070,6.56392346,126.31,126.28,0.71711492]
[1767317711364,0.69259527,126.31,126.28,0.71711492]
[1767317712368,3.94884404,126.31,126.28,0.71711492]
[1767317713162,3.25624877,126.31,126.28,0.71711492]
[1767317713362,0.69259527,126.32,126.28,0.71711492]
[1767317713550,6.56450929,126.31,126.28,0.71711492]
[1767317713753,0.69259527,126.31,126.28,0.71711492]
[1767317713951,0.69259527,126.32,126.28,7.91886702]
[1767317714257,0.69259527,126.32,126.29,0.71711492]
[1767317715567,0.69259527,126.32,126.28,11.17511579]
[1767317715776,0.69259527,126.31,126.27,26.35265897]
[1767317716452,0.69259527,126.29,126.25,3.25624877]
[1767317716755,0.69259527,126.29,126.26,0.71711492]
[1767317720651,0.69259527,126.27,126.24,0.71711492]
[1767317721359,3.94884404,126.27,126.24,0.71711492]
[1767317722450,0.69259527,126.27,126.24,0.71711492]
[1767317723871,3.94884404,126.27,126.24,0.71711492]
[1767317725574,0.69451208,126.26,126.24,0.71711492]
[1767317728460,3.95076085,126.26,126.23,14.46]
[1767317728661,3.95076085,126.26,126.23,0.70403657]
[1767317730758,0.69451208,126.28,126.23,7.92201562]